{"text_format":"2","workbook":"xlsx","n_sheets":1,"sheets":["Blad1"],"not_rendered":{"charts":0,"images":0,"macros":0,"external_links":0,"defined_names":0,"comments":0,"pivot_tables":0},"unopened":[],"bounds":{"document_bytes":16777216,"sheet_cells":100000,"run_cost":"one","rows_first":2000,"rows_last":500,"rows_between":2000,"halvings":0,"cell_chars":16384,"cell_head_chars":4096},"cells_cut":0,"cells_raw":0,"read":"whole","date_system":"1900"}

{"sheet":"Blad1","index":0,"n_rows":36,"n_cols":11,"rows_kept":36,"cut":false,"hidden":false,"merged":[]}
["Financiële verantwoording 2024 Subsidieregeling kosten peuteropvang."]
["Versie",1]
[]
["Naam houder:"]
["Periode"]
[]
["Totaal ontvangen subsidie van de gemeente voor 2024"]
[]
["Daadwerkelijk gebruik subsidie peuteropvang 2024"]
[]
["Initiale kind","Inkomen gezin","% tegemoet- koming","Uurprijs houder of maximum uurprijs € 10,25*","Startdatum","Einddatum","Periode gebruik afgerond op hele weken**","Uren peuteropvang per week","Kosten peuter- opvang","Ontvangen ouderbijdrage","Gebruik subsidie gemeente"]
["Voorbeeld A.A.",20000,0.94399999999999995,10.25,"01 05 2024","20 11 2024",25,7,{"$f":"D12*G12*H12","v":1793.75},{"$f":"(100%-C12)*D12*G12*H12","v":100.45000000000009},{"$f":"C12*D12*G12*H12","v":1693.3}]
[{"$nulls":8},{"$f":"D13*G13*H13","v":0},{"$f":"(100%-C13)*G13*H13*I13","v":0},{"$f":"C13*D13*G13*H13","v":0}]
[{"$nulls":8},{"$f":"D14*G14*H14","v":0},{"$f":"(100%-C14)*I14","v":0},{"$f":"C14*D14*G14*H14","v":0}]
[{"$nulls":8},0,{"$f":"(100%-C15)*G15*H15*I15","v":0},0]
[{"$nulls":8},0,0,0]
[{"$nulls":8},0,0,0]
[{"$nulls":8},0,0,0]
[{"$nulls":8},0,0,0]
[{"$nulls":8},0,0,0]
[{"$nulls":8},0,0,0]
[{"$nulls":8},0,0,0]
[{"$nulls":8},0,0,0]
[{"$nulls":8},0,0,0]
[{"$nulls":8},0,0,0]
[{"$nulls":8},0,0,0]
[{"$nulls":8},{"$f":"I13+I14+I15+I16+I17+I18+I19+I20+I21+I22+I23+I24+I25+I26","v":0},{"$f":"J13+J14+J15+J16+J17+J18+J19+J20+J21+J22+J23+J24+J25+J26","v":0},{"$f":"K13+K14+K15+K16+K17+K18+K19+K20+K21+K22+K23+K24+K25+K26","v":0}]
["* Is de uurprijs van de houder lager dan € 10,25 dan de uurprijs van de houder gebruiken. Is de uurprijs van de houder hoger dan de maximum uurprijs, dan de maximum uurprijs gebruiken."]
["Dus bij een uurprijs van de houder van € 9,95 wordt deze uurprijs in de berekening gebruikt, is de uurprijs € 10,26 of hoger dan de maximum uurprijs gebruiken."]
["* * De eerste week waarin de peuter instroomt telt als hele week mee en dat geldt ook voor de week waarin de peuter uitstroomt."]
[]
[]
["Eindverantwoording",{"$f":"I7-K27","v":0}]
[]
["NB Bij een positief saldo volgt een terugvordering van de gemeente. U hebt de subsidie niet helemaal nodig gehad."]
["Bij een negatief saldo wordt de subsidie vastgesteld op het bedrag dat u aan subsidie hebt ontvangen. U ontvangt geen aanvulling."]